fUSD/lending_fUSD_20241015
["ID","MTS","AMOUNT","RATE_DAILY","PERIOD"]
[340272970,1728983449060,-500.0,0.00024657,7]
[340272971,1728983449069,-500.0,0.00024657,7]
[340272972,1728983449078,-624.37016181,0.00024657,7]
[340272973,1728983449088,-530.37650344,0.00024657,7]
[340272974,1728983449097,-500.0,0.00024657,7]
[340272975,1728983449107,-510.44730485,0.00024657,7]
[340272976,1728983449116,-524.44784409,0.00024657,7]
[340272977,1728983449125,-412.03558916,0.00024657,7]
[340272978,1728983449134,-500.0,0.00024657,7]
[340272979,1728983449144,-500.0,0.00024657,7]
[340272980,1728983449153,-500.0,0.00024657,7]
[340272981,1728983449162,-348.45948076,0.00024657,7]
[340272982,1728983449171,-150.0,0.00024657,7]
[340272983,1728983449180,-150.0,0.00024657,7]
[340272984,1728983449191,-150.0,0.00024657,7]
[340272985,1728983449200,-150.0,0.00024657,7]
[340272986,1728983449209,-150.0,0.00024657,7]
[340272987,1728983449219,-536.28785107,0.00024657,7]
[340272988,1728983449228,-500.0,0.00024657,7]
[340272989,1728983449237,-150.0,0.00024657,7]
[340272990,1728983449247,-500.0,0.00024657,7]
[340272991,1728983449256,-500.0,0.00024657,7]
[340272992,1728983449265,-150.0,0.00024657,7]
[340272993,1728983449275,-500.0,0.00024657,7]
[340272994,1728983449285,-500.0,0.00024657,7]
[340272995,1728983449294,-150.0,0.00024657,7]
[340272996,1728983449303,-500.0,0.00024657,7]
[340272997,1728983449313,-500.0,0.00024657,7]
[340272998,1728983449412,-500.0,0.00024657,7]
[340272999,1728983449423,-150.0,0.00024657,7]
[340273000,1728983449432,-500.0,0.00024657,7]
[340273001,1728983449442,-362.61101599,0.00024657,7]
[340273002,1728983449451,-150.0,0.00024657,7]
[340273003,1728983449461,-500.0,0.00024657,7]
[340273004,1728983449471,-280.91392767,0.00024657,7]
[340273005,1728983449480,-500.0,0.00024657,7]
[340273006,1728983449490,-514.18900895,0.00024657,7]
[340273007,1728983449499,-500.0,0.00024657,7]
[340273008,1728983449509,-500.0,0.00024657,7]
[340273009,1728983449519,-500.0,0.00024657,7]
[340273010,1728983449528,-519.04617638,0.00024657,7]
[340273011,1728983449538,-500.0,0.00024657,7]
[340273012,1728983449547,-315.37184296,0.00024657,7]
[340273013,1728983449556,-517.35653901,0.00024657,7]
[340273014,1728983449566,-500.0,0.00024657,7]
[340273015,1728983449574,-543.24541953,0.00024657,7]
[340273016,1728983449583,-626.02816339,0.00024657,7]
[340273017,1728983449592,-471.23756815,0.00024657,7]
[340273018,1728983449602,-500.0,0.00024657,7]
[340273019,1728983449611,-1250.02,0.00024657,7]
[340273020,1728983449620,-1250.02,0.00024657,7]
[340273021,1728983449630,-1250.02,0.00024657,7]
[340273022,1728983449639,-1250.02,0.00024657,7]
[340273023,1728983449648,-522.61593354,0.00024657,7]
[340273024,1728983449657,-1250.02,0.00024657,7]
[340273025,1728983449666,-1250.02,0.00024657,7]
[340273026,1728983449675,-1250.02,0.00024657,7]
[340273027,1728983449686,-1250.02,0.00024657,7]
[340273028,1728983449700,-1250.02,0.00024657,7]
[340273029,1728983449710,-1250.02,0.00024657,7]
[340273030,1728983449719,-1250.02,0.00024657,7]
[340273031,1728983449730,-1250.02,0.00024657,7]
[340273032,1728983449739,-1250.02,0.00024657,7]
[340273033,1728983449748,-524.48154893,0.00024657,7]
[340273034,1728983449758,-1250.02,0.00024657,7]
[340273035,1728983449768,-1250.02,0.00024657,7]
[340273036,1728983449777,-1250.02,0.00024657,7]
[340273037,1728983449787,-1250.02,0.00024657,7]
[340273038,1728983449795,-528.06346015,0.00024657,7]
[340273039,1728983449805,-1250.02,0.00024657,7]
[340273040,1728983449814,-1250.02,0.00024657,7]
[340273041,1728983449823,-1250.02,0.00024657,7]
[340273042,1728983449833,-623.00592599,0.00024657,7]
[340273043,1728983449842,-528.89375026,0.00024657,7]
[340273044,1728983449852,-1250.02,0.00024657,7]
[340273045,1728983449862,-1250.02,0.00024657,7]
[340273046,1728983449872,-500.0,0.00024657,7]
[340273047,1728983449882,-1250.02,0.00024657,7]
[340273048,1728983449892,-500.0,0.00024657,7]
[340273049,1728983449902,-500.0,0.00024657,7]
[340273050,1728983449911,-500.0,0.00024657,7]
[340273051,1728983449921,-1250.25391076,0.00024657,7]
[340273052,1728983449931,-500.0,0.00024657,7]
[340273053,1728983449942,-500.0,0.00024657,7]
[340273054,1728983449951,-500.0,0.00024657,7]
[340273055,1728983449961,-532.82921769,0.00024657,7]
[340273056,1728983449971,-509.49719772,0.00024657,7]
[340273057,1728983449981,-500.0,0.00024657,7]
[340273058,1728983449990,-500.0,0.00024657,7]
[340273059,1728983450000,-500.0,0.00024657,7]
[340273060,1728983450009,-532.16743701,0.00024657,7]
[340273061,1728983450018,-500.0,0.00024657,7]
[340273062,1728983450028,-538.89991753,0.00024657,7]
[340273063,1728983450037,-513.22331635,0.00024657,7]
[340273064,1728983450047,-500.0,0.00024657,7]
[340273065,1728983450056,-500.0,0.00024657,7]
[340273066,1728983450065,-500.0,0.00024657,7]
[340273067,1728983450074,-221.86798139,0.00024657,7]
[340273068,1728983450083,-500.0,0.00024657,7]
[340273069,1728983450092,-500.0,0.00024657,7]
[340273070,1728983450102,-500.0,0.00024657,7]
[340273071,1728983450111,-500.0,0.00024657,7]
[340273072,1728983450120,-567.43835272,0.00024657,7]
[340273073,1728983450130,-594.56933593,0.00024657,7]
[340273074,1728983450139,-571.70586285,0.00024657,7]
[340273075,1728983450148,-530.26414138,0.00024657,7]
[340273076,1728983450158,-500.0,0.00024657,7]
[340273077,1728983450167,-500.0,0.00024657,7]
[340273078,1728983450177,-211.64086212,0.00024657,7]
[340273079,1728983450186,-510.0200222,0.00024657,7]
[340273080,1728983450195,-224.51377708,0.00024657,7]
[340273081,1728983450204,-500.0,0.00024657,7]
[340273082,1728983450214,-500.0,0.00024657,7]
[340273083,1728983450223,-649.40849293,0.00024657,7]
[340273084,1728983450233,-500.0,0.00024657,7]
[340273085,1728983450242,-389.659681,0.00024657,7]
[340273086,1728983450252,-175.56380009,0.00024657,7]
[340273087,1728983450261,-500.0,0.00024657,7]
[340273088,1728983450271,-541.72335085,0.00024657,7]
[340273089,1728983450281,-500.0,0.00024657,7]
[340273090,1728983450290,-500.0,0.00024657,7]
[340273091,1728983450300,-500.0,0.00024657,7]
[340273092,1728983450310,-500.0,0.00024657,7]
[340273093,1728983450320,-500.0,0.00024657,7]
[340273094,1728983450329,-500.0,0.00024657,7]
[340273095,1728983450339,-227.55578836,0.00024657,7]
[340273096,1728983450348,-352.89890561,0.00024657,7]
[340273097,1728983450357,-500.0,0.00024657,7]
[340273098,1728983450367,-500.0,0.00024657,7]
[340273099,1728983450376,-500.0,0.00024657,7]
[340273100,1728983450386,-567.75007489,0.00024657,7]
[340273101,1728983450395,-500.0,0.00024657,7]
[340273102,1728983450405,-500.0,0.00024657,7]
[340273103,1728983450415,-500.0,0.00024657,7]
[340273104,1728983450425,-500.0,0.00024657,7]
[340273105,1728983450434,-500.0,0.00024657,7]
[340273106,1728983450443,-500.0,0.00024657,7]
[340273107,1728983450452,-274.34455012,0.00024657,7]
[340273108,1728983450462,-528.67032067,0.00024657,7]
[340273109,1728983450471,-649.89110919,0.00024657,7]
[340273110,1728983450480,-505.76770711,0.00024657,7]
[340273111,1728983450490,-534.54678413,0.00024657,7]
[340273112,1728983450499,-500.0,0.00024657,7]
[340273113,1728983450508,-500.0,0.00024657,7]
[340273114,1728983450518,-500.0,0.00024657,7]
[340273115,1728983450527,-500.0,0.00024657,7]
[340273116,1728983450536,-500.0,0.00024657,7]
[340273117,1728983450546,-500.0,0.00024657,7]
[340273118,1728983450556,-592.58217701,0.00024657,7]
[340273119,1728983450565,-500.0,0.00024657,7]
[340273120,1728983450574,-633.86822389,0.00024657,7]
[340273121,1728983450583,-500.0,0.00024657,7]
[340273122,1728983450593,-559.71141179,0.00024657,7]
[340273123,1728983450602,-543.57284183,0.00024657,7]
[340273124,1728983450612,-500.0,0.00024657,7]
[340273125,1728983450621,-500.0,0.00024657,7]
[340273126,1728983450631,-500.0,0.00024657,7]
[340273127,1728983450641,-500.0,0.00024657,7]
[340273128,1728983450650,-500.0,0.00024657,7]
[340273129,1728983450659,-500.0,0.00024657,7]
[340273130,1728983450669,-500.0,0.00024657,7]
[340273131,1728983450679,-230.88622234,0.00024657,7]
[340273132,1728983450689,-333.04004209,0.00024657,7]
[340273133,1728983450701,-500.0,0.00024657,7]
[340273134,1728983450710,-500.0,0.00024657,7]
[340273135,1728983450720,-500.0,0.00024657,7]
[340273136,1728983450729,-500.0,0.00024657,7]
[340273137,1728983450739,-500.0,0.00024657,7]
[340273138,1728983450749,-500.0,0.00024657,7]
[340273139,1728983450758,-500.0,0.00024657,7]
[340273140,1728983450770,-543.13671202,0.00024657,7]
[340273141,1728983450779,-500.0,0.00024657,7]
[340273142,1728983450789,-500.0,0.00024657,7]
[340273143,1728983450798,-500.0,0.00024657,7]
[340273144,1728983450808,-500.0,0.00024657,7]
[340273145,1728983450817,-500.0,0.00024657,7]
[340273146,1728983450827,-500.0,0.00024657,7]
[340273147,1728983450836,-564.57329357,0.00024657,7]
[340273148,1728983450845,-500.0,0.00024657,7]
[340273149,1728983450855,-500.0,0.00024657,7]
[340273150,1728983450864,-500.0,0.00024657,7]
[340273151,1728983450874,-578.41700969,0.00024657,7]
[340273152,1728983450883,-542.97491651,0.00024657,7]
[340273153,1728983450892,-500.0,0.00024657,7]
[340273154,1728983450902,-513.18165621,0.00024657,7]
[340273155,1728983450911,-500.0,0.00024657,7]
[340273156,1728983450920,-500.0,0.00024657,7]
[340273157,1728983450929,-500.0,0.00024657,7]
[340273158,1728983450939,-500.0,0.00024657,7]
[340273159,1728983450948,-500.0,0.00024657,7]
[340273160,1728983450958,-500.0,0.00024657,7]
[340273161,1728983450968,-500.0,0.00024657,7]
[340273162,1728983450978,-500.0,0.00024657,7]
[340273163,1728983450987,-507.5114503,0.00024657,7]
[340273164,1728983450996,-500.0,0.00024657,7]
[340273165,1728983451006,-530.0,0.00024657,7]
[340273166,1728983451015,-500.0,0.00024657,7]
[340273167,1728983451024,-350.27302603,0.00024657,7]
[340273168,1728983451034,-500.0,0.00024657,7]
[340273169,1728983451043,-552.5086183,0.00024657,7]
[340273170,1728983451052,-502.05711411,0.00024657,7]
[340273171,1728983451062,-596.81045551,0.00024657,7]
[340273172,1728983451071,-519.8465457,0.00024657,7]
[340273173,1728983451080,-500.0,0.00024657,7]
[340273174,1728983451090,-564.65448228,0.00024657,7]
[340273175,1728983451099,-500.0,0.00024657,7]
[340273176,1728983451109,-611.57256505,0.00024657,7]
[340273177,1728983451119,-516.42759207,0.00024657,7]
[340273178,1728983451128,-500.0,0.00024657,7]
[340273179,1728983451138,-536.36245824,0.00024657,7]
[340273180,1728983451147,-500.0,0.00024657,7]
[340273181,1728983451236,-500.0,0.00024657,7]
[340273182,1728983451255,-500.0,0.00024657,7]
[340273183,1728983451265,-500.0,0.00024657,7]
[340273184,1728983451274,-234.71852848,0.00024657,7]
[340273185,1728983451283,-181.57375216,0.00024657,7]
[340273186,1728983451293,-500.0,0.00024657,7]
[340273187,1728983451302,-500.0,0.00024657,7]
[340273188,1728983451312,-500.0,0.00024657,7]
[340273189,1728983451321,-500.0,0.00024657,7]
[340273190,1728983451331,-595.78231566,0.00024657,7]
[340273191,1728983451341,-500.0,0.00024657,7]
[340273192,1728983451350,-160.62227301,0.00024657,7]
[340273193,1728983451360,-500.0,0.00024657,7]
[340273194,1728983451369,-500.0,0.00024657,7]
[340273195,1728983451379,-500.0,0.00024657,7]
[340273196,1728983451388,-500.0,0.00024657,7]
[340273197,1728983451398,-500.0,0.00024657,7]
[340273198,1728983451408,-500.0,0.00024657,7]
[340273199,1728983451417,-500.0,0.00024657,7]
[340273200,1728983451427,-500.0,0.00024657,7]
[340273201,1728983451437,-500.0,0.00024657,7]
[340273202,1728983451447,-500.0,0.00024657,7]
[340273203,1728983451456,-500.0,0.00024657,7]
[340273204,1728983451466,-500.0,0.00024657,7]
[340273205,1728983451476,-500.0,0.00024657,7]
[340273206,1728983451485,-525.44689262,0.00024657,7]
[340273207,1728983451496,-500.0,0.00024657,7]
[340273208,1728983451505,-500.0,0.00024657,7]
[340273209,1728983451514,-500.0,0.00024657,7]
[340273210,1728983451525,-500.0,0.00024657,7]
[340273211,1728983451534,-307.91022602,0.00024657,7]
[340273212,1728983451543,-480.05000388,0.00024657,7]
[340273213,1728983451553,-525.97098864,0.00024657,7]
[340273214,1728983451562,-261.50464159,0.00024657,7]
[340273215,1728983451572,-610.70396728,0.00024657,7]
[340273216,1728983451581,-500.0,0.00024657,7]
[340273217,1728983451590,-151.0,0.00024657,7]
[340273218,1728983451600,-500.0,0.00024657,7]
[340273219,1728983451609,-151.0,0.00024657,7]
[340273220,1728983451618,-500.0,0.00024657,7]
[340273221,1728983451628,-500.0,0.00024657,7]
[340273222,1728983451638,-151.0,0.00024657,7]
[340273223,1728983451647,-500.0,0.00024657,7]
[340273224,1728983451657,-500.0,0.00024657,7]
[340273225,1728983451666,-500.0,0.00024657,7]
[340273226,1728983451676,-151.0,0.00024657,7]
[340273227,1728983451687,-602.64569141,0.00024657,7]
[340273228,1728983451702,-151.0,0.00024657,7]
[340273229,1728983451712,-500.0,0.00024657,7]
[340273230,1728983451721,-151.0,0.00024657,7]
[340273231,1728983451731,-573.66052522,0.00024657,7]
[340273232,1728983451741,-151.0,0.00024657,7]
[340273233,1728983451750,-151.0,0.00024657,7]
[340273234,1728983451760,-206.20792988,0.00024657,7]
[340273235,1728983451770,-500.0,0.00024657,7]
[340273236,1728983451780,-500.0,0.00024657,7]
[340273237,1728983451790,-500.0,0.00024657,7]
[340273238,1728983451800,-151.0,0.00024657,7]
[340273239,1728983451809,-151.0,0.00024657,7]
[340273240,1728983451819,-439.11470361,0.00024657,7]
[340273241,1728983451828,-151.0,0.00024657,7]
[340273242,1728983451838,-151.0,0.00024657,7]
[340273243,1728983451847,-298.303039,0.00024657,7]
[340273244,1728983451857,-500.0,0.00024657,7]
[340273245,1728983451866,-500.0,0.00024657,7]
[340273246,1728983451876,-500.0,0.00024657,7]
[340273247,1728983451885,-500.0,0.00024657,7]
[340273248,1728983451895,-500.0,0.00024657,7]
[340273249,1728983451907,-524.73567275,0.00024657,7]
[340273250,1728983451916,-500.0,0.00024657,7]
[340273251,1728983451926,-500.0,0.00024657,7]
[340273252,1728983451938,-500.0,0.00024657,7]
[340273253,1728983451951,-500.0,0.00024657,7]
[340273254,1728983451961,-623.78357171,0.00024657,7]
[340273255,1728983451971,-500.0,0.00024657,7]
[340273256,1728983451981,-500.0,0.00024657,7]
[340273257,1728983451991,-500.0,0.00024657,7]
[340273258,1728983452001,-500.0,0.00024657,7]
[340273259,1728983452011,-500.0,0.00024657,7]
[340273260,1728983452020,-500.0,0.00024657,7]
[340273261,1728983452030,-500.0,0.00024657,7]
[340273262,1728983452039,-500.0,0.00024657,7]
[340273263,1728983452049,-512.93267398,0.00024657,7]
[340273264,1728983452059,-500.0,0.00024657,7]
[340273265,1728983452069,-500.0,0.00024657,7]
[340273266,1728983452077,-500.0,0.00024657,7]
[340273267,1728983452088,-500.0,0.00024657,7]
[340273268,1728983452097,-500.0,0.00024657,7]
[340273269,1728983452107,-227.46223872,0.00024657,7]
[340273270,1728983452117,-517.92320935,0.00024657,7]
[340273271,1728983452126,-500.0,0.00024657,7]
[340273272,1728983452136,-513.56138243,0.00024657,7]
[340273273,1728983452145,-500.0,0.00024657,7]
[340273274,1728983452154,-604.1042392,0.00024657,7]
[340273275,1728983452163,-510.99274021,0.00024657,7]
[340273276,1728983452173,-500.0,0.00024657,7]
[340273277,1728983452183,-250.82957997,0.00024657,7]
[340273278,1728983452194,-500.0,0.00024657,7]
[340273279,1728983452203,-496.65310186,0.00024657,7]
[340273280,1728983452213,-564.00660521,0.00024657,7]
[340273281,1728983452222,-510.08667728,0.00024657,7]
[340273282,1728983452231,-535.5441759,0.00024657,7]
[340273283,1728983452240,-500.0,0.00024657,7]
[340273284,1728983452249,-500.0,0.00024657,7]
[340273285,1728983452259,-500.0,0.00024657,7]
[340273286,1728983452268,-500.0,0.00024657,7]
[340273287,1728983452278,-1345.97,0.00024657,7]
[340273288,1728983452287,-500.0,0.00024657,7]
[340273289,1728983452297,-1345.97,0.00024657,7]
[340273290,1728983452306,-500.0,0.00024657,7]
[340273291,1728983452316,-1345.97,0.00024657,7]
[340273292,1728983452325,-1345.97,0.00024657,7]
[340273293,1728983452335,-500.0,0.00024657,7]
[340273294,1728983452344,-1345.97,0.00024657,7]
[340273295,1728983452354,-500.0,0.00024657,7]
[340273296,1728983452363,-1345.97,0.00024657,7]
[340273297,1728983452373,-500.0,0.00024657,7]
[340273298,1728983452382,-566.04969145,0.00024657,7]
[340273299,1728983452391,-500.0,0.00024657,7]
[340273300,1728983452401,-527.24932824,0.00024657,7]
[340273301,1728983452411,-500.0,0.00024657,7]
[340273302,1728983452420,-1345.97,0.00024657,7]
[340273303,1728983452430,-500.0,0.00024657,7]
[340273304,1728983452441,-1345.97,0.00024657,7]
[340273305,1728983452450,-500.0,0.00024657,7]
[340273306,1728983452459,-1345.97,0.00024657,7]
[340273307,1728983452468,-504.77105364,0.00024657,7]
[340273308,1728983452478,-1345.97,0.00024657,7]
[340273309,1728983452487,-1345.97,0.00024657,7]
[340273310,1728983452497,-1345.97,0.00024657,7]
[340273311,1728983452506,-1345.97,0.00024657,7]
[340273312,1728983452516,-1345.97,0.00024657,7]
[340273313,1728983452526,-1345.97,0.00024657,7]
[340273314,1728983452535,-1345.97,0.00024657,7]
[340273315,1728983452544,-1345.97,0.00024657,7]
[340273316,1728983452554,-1345.97,0.00024657,7]
[340273317,1728983452563,-1345.97,0.00024657,7]
[340273318,1728983452572,-523.29619599,0.00024657,7]
[340273319,1728983452581,-1345.97,0.00024657,7]
[340273320,1728983452590,-1345.97,0.00024657,7]
[340273321,1728983452599,-1345.97,0.00024657,7]
[340273322,1728983452609,-527.84827695,0.00024657,7]
[340273323,1728983452618,-1345.97,0.00024657,7]
[340273324,1728983452628,-1345.98200231,0.00024657,7]
[340273325,1728983452637,-518.95015149,0.00024657,7]
[340273326,1728983452647,-500.0,0.00024657,7]
[340273327,1728983452656,-500.0,0.00024657,7]
[340273328,1728983452666,-500.0,0.00024657,2]
[340273329,1728983452675,-500.0,0.00024657,7]
[340273330,1728983452684,-500.0,0.00024657,2]
[340273331,1728983452699,-500.0,0.00024657,7]
[340273332,1728983452709,-500.0,0.00024657,7]
[340273333,1728983452718,-500.0,0.00024657,2]
[340273334,1728983452727,-500.0,0.00024657,7]
[340273335,1728983452739,-500.0,0.00024657,2]
[340273336,1728983452749,-517.46397319,0.00024657,7]
[340273337,1728983452758,-500.0,0.00024657,2]
[340273338,1728983452770,-350.72744749,0.00024657,7]
[340273339,1728983452781,-500.0,0.00024657,2]
[340273340,1728983452791,-500.0,0.00024657,7]
[340273341,1728983452800,-518.75,0.00024657,7]
[340273342,1728983452810,-342.8,0.00024657,7]
[340273343,1728983452823,-500.0,0.00024657,2]
[340273344,1728983452832,-500.0,0.00024657,2]
[340273345,1728983452842,-500.0,0.00024657,2]
[340273346,1728983452851,-500.0,0.00024657,7]
[340273347,1728983452861,-500.79101605,0.00024657,2]
[340273348,1728983452871,-530.67850504,0.00024657,7]
[340273349,1728983452880,-500.0,0.00024657,7]
[340273350,1728983452890,-500.0,0.00024657,7]
[340273351,1728983452991,-500.0,0.00024657,7]
[340273352,1728983453001,-500.0,0.00024657,7]
[340273353,1728983453011,-500.0,0.00024657,7]
[340273354,1728983453020,-500.0,0.00024657,7]
[340273355,1728983453030,-503.18038041,0.00024657,7]
[340273356,1728983453040,-500.0,0.00024657,7]
[340273357,1728983453049,-500.0,0.00024657,7]
[340273358,1728983453058,-505.69748364,0.00024657,7]
[340273359,1728983453068,-200.60716947,0.00024657,7]
[340273360,1728983453078,-500.0,0.00024657,7]
[340273361,1728983453087,-500.0,0.00024657,7]
[340273362,1728983453097,-524.10680346,0.00024657,7]
[340273363,1728983453107,-526.17882328,0.00024657,7]
[340273364,1728983453116,-543.10686886,0.00024657,7]
[340273365,1728983453125,-540.64458715,0.00024657,7]
[340273366,1728983453135,-632.74164364,0.00024657,7]
[340273367,1728983453144,-500.0,0.00024657,7]
[340273368,1728983453154,-500.0,0.00024657,7]
[340273369,1728983453163,-500.0,0.00024657,7]
[340273370,1728983453172,-500.0,0.00024657,7]
[340273371,1728983453182,-500.0,0.00024657,7]
[340273372,1728983453193,-500.0,0.00024657,7]
[340273373,1728983453202,-500.0,0.00024657,7]
[340273374,1728983453212,-500.0,0.00024657,7]
[340273375,1728983453222,-500.0,0.00024657,7]
[340273376,1728983453231,-227.49112599,0.00024657,7]
[340273377,1728983453240,-500.0,0.00024657,7]
[340273378,1728983453249,-527.77367847,0.00024657,7]
[340273379,1728983453259,-253.56291847,0.00024657,7]
[340273380,1728983453268,-510.7512161,0.00024657,7]
[340273381,1728983453277,-236.12583218,0.00024657,7]
[340273382,1728983453287,-525.88812354,0.00024657,7]
[340273383,1728983453296,-500.0,0.00024657,7]
[340273384,1728983453306,-500.0,0.00024657,7]
[340273385,1728983453315,-560.58104114,0.00024657,7]
[340273386,1728983453325,-500.0,0.00024657,7]
[340273387,1728983453334,-500.0,0.00024657,7]
[340273388,1728983453344,-500.0,0.00024657,7]
[340273389,1728983453354,-195.41299109,0.00024657,7]
[340273390,1728983453364,-572.72217615,0.00024657,7]
[340273391,1728983453373,-500.0,0.00024657,7]
[340273392,1728983453383,-516.03874749,0.00024657,7]
[340273393,1728983453392,-520.80135901,0.00024657,7]
[340273394,1728983453402,-500.0,0.00024657,7]
[340273395,1728983453411,-531.64212272,0.00024657,7]
[340273396,1728983453421,-500.0,0.00024657,7]
[340273397,1728983453431,-578.64682946,0.00024657,7]
[340273398,1728983453441,-500.0,0.00024657,7]
[340273399,1728983453450,-500.0,0.00024657,7]
[340273400,1728983453459,-500.0,0.00024657,7]
[340273401,1728983453469,-500.0,0.00024657,7]
[340273402,1728983453478,-570.55134008,0.00024657,7]
[340273403,1728983453488,-500.0,0.00024657,7]
[340273404,1728983453497,-500.0,0.00024657,7]
[340273405,1728983453506,-500.0,0.00024657,7]
[340273406,1728983453515,-500.0,0.00024657,7]
[340273407,1728983453524,-500.0,0.00024657,7]
[340273408,1728983453533,-500.0,0.00024657,7]
[340273409,1728983453543,-500.0,0.00024657,7]
[340273410,1728983453552,-500.0,0.00024657,7]
[340273411,1728983453561,-263.36463027,0.00024657,7]
[340273412,1728983453570,-500.0,0.00024657,7]
[340273413,1728983453580,-500.0,0.00024657,7]
[340273414,1728983453589,-500.0,0.00024657,7]
[340273415,1728983453599,-500.0,0.00024657,7]
[340273416,1728983453608,-155.34339727,0.00024657,7]
[340273417,1728983453617,-360.82781587,0.00024657,7]
[340273418,1728983453627,-578.9101768,0.00024657,7]
[340273419,1728983453636,-500.0,0.00024657,7]
[340273420,1728983453646,-500.0,0.00024657,7]
[340273421,1728983453655,-548.66361745,0.00024657,7]
[340273422,1728983453664,-544.57942176,0.00024657,7]
[340273423,1728983453672,-500.0,0.00024657,7]
[340273424,1728983453682,-500.0,0.00024657,7]
[340273425,1728983453695,-500.0,0.00024657,7]
[340273426,1728983453706,-500.0,0.00024657,7]
[340273427,1728983453715,-500.0,0.00024657,7]
[340273428,1728983453725,-500.0,0.00024657,7]
[340273429,1728983453736,-500.0,0.00024657,7]
[340273430,1728983453745,-586.44401176,0.00024657,7]
[340273431,1728983453754,-500.0,0.00024657,7]
[340273432,1728983453763,-500.0,0.00024657,7]
[340273433,1728983453774,-500.0,0.00024657,7]
[340273434,1728983453783,-500.0,0.00024657,7]
[340273435,1728983453792,-500.0,0.00024657,7]
[340273436,1728983453801,-543.63669595,0.00024657,7]
[340273437,1728983453809,-500.0,0.00024657,7]
[340273438,1728983453819,-500.0,0.00024657,7]
[340273439,1728983453827,-500.0,0.00024657,7]
[340273440,1728983453837,-500.0,0.00024657,7]
[340273441,1728983453846,-500.0,0.00024657,7]
[340273442,1728983453855,-643.75156478,0.00024657,7]
[340273443,1728983453864,-500.0,0.00024657,7]
[340273444,1728983453873,-561.14949326,0.00024657,7]
[340273445,1728983453883,-546.95007149,0.00024657,7]
[340273446,1728983453892,-500.0,0.00024657,7]
[340273447,1728983453901,-500.0,0.00024657,7]
[340273448,1728983453910,-500.0,0.00024657,7]
[340273449,1728983453920,-500.0,0.00024657,7]
[340273450,1728983453929,-534.22651458,0.00024657,7]
[340273451,1728983453940,-151.0,0.00024657,7]
[340273452,1728983453949,-500.0,0.00024657,7]
[340273453,1728983453959,-151.0,0.00024657,7]
[340273454,1728983453968,-557.99093712,0.00024657,7]
[340273455,1728983453977,-151.0,0.00024657,7]
[340273456,1728983453987,-151.0,0.00024657,7]
[340273457,1728983453995,-151.0,0.00024657,7]
[340273458,1728983454004,-151.0,0.00024657,7]
[340273459,1728983454013,-530.26245626,0.00024657,7]
[340273460,1728983454022,-151.0,0.00024657,7]
[340273461,1728983454031,-189.802791,0.00024657,7]
[340273462,1728983454041,-274.82658418,0.00024657,7]
[340273463,1728983454050,-522.35951473,0.00024657,7]
[340273464,1728983454059,-525.00153727,0.00024657,7]
[340273465,1728983454068,-500.0,0.00024657,7]
[340273466,1728983454078,-500.0,0.00024657,7]
[340273467,1728983454087,-500.0,0.00024657,7]
[340273468,1728983454096,-562.37924849,0.00024657,7]
[340273469,1728983454105,-500.0,0.00024657,7]